Cogmind - Beta 17 @@@ ROGUE MODE // 2026.07.28 @ 10:13:30 Player: Stainfree Result: Destroyed by S-10 Pest with Light Assault Rifle Performance ------------- Evolutions (0) 0 Regions Visited (1) 200 Robots Destroyed (4) 20 Value Destroyed (134) 134 Prototype IDs (2) 40 Alien Tech Used (0) 0 Bonus (0) 0 TOTAL SCORE: 394 Bonus ------- None Cogmind --------- Core Integrity 0/250 Matter 147/300 Energy 100/100 System Corruption 0% Temperature Cool (0) Movement Rolling (80) Location -10/Materials Parts ------- > --- POWER (1) -------- (None) > --- PROPULSION (2) --- Wheel > --- UTILITY (2) ------ (None) > --- WEAPON (2) ------- Maul > --- INVENTORY (5) ---- Light Ion Engine Huge Storage Unit ECM Suite Grenade Launcher Peak State ------------ > --- POWER ------------ Ion Engine > --- PROPULSION ------- Aluminum Leg Aluminum Leg > --- UTILITY ---------- Small Storage Unit > --- WEAPON ----------- Medium Laser Assault Rifle > --- INVENTORY -------- Light Ion Engine Wheel Grenade Launcher [Rating: 6] Favorites ----------- Power Ion Engine Engine Ion Engine Propulsion Aluminum Leg Leg Aluminum Leg Wheel Wheel Utility Small Storage Unit Storage Small Storage Unit Weapon Grenade Launcher Energy Gun Medium Laser Ballistic Gun Assault Rifle Launcher Grenade Launcher Impact Weapon Maul Build | -11 -10 ------- Run | Yrd Mat Slots Evolved . | . . Power . | . . Propulsion . | . . Utility . | . . Weapon . | . . Parts Attached 10 | 6 4 Power 1 | 1 . Engine 1 | 1 . Core . | . . Reactor . | . . Propulsion 3 | 2 1 Treads . | . . Leg 2 | 2 . Wheel 1 | . 1 Hover . | . . Flight . | . . Utility 1 | . 1 Device . | . . Storage 1 | . 1 Processor . | . . Hackware . | . . Protection . | . . Artifact . | . . Weapon 5 | 3 2 Energy Gun 2 | 2 . Energy Cannon . | . . Ballistic Gun 1 | 1 . Ballistic Cannon . | . . Launcher 1 | . 1 Special Weapon . | . . Impact Weapon 1 | . 1 Slashing Weapon . | . . Piercing Weapon . | . . Special Melee Weapon . | . . Unidentified Prototypes . | . . Parts Lost 4 | . 4 Power 1 | . 1 Propulsion 1 | . 1 Utility . | . . Weapon 2 | . 2 Highest Loss Streak 3 | . 3 To Critical Strikes . | . . Average Backups 2 | 1 2 Power . | . 1 Propulsion . | . . Utility . | . . Weapon . | . . Tool/Special . | . . Unused Backups 3 | . 3 Power 1 | . 1 Propulsion . | . . Utility 2 | . 2 Weapon . | . . Tool/Special . | . . Average Slot Usage (%) 66 | . 66 Engine 13 | . 13 Leg 19 | . 19 Storage 11 | . 11 Energy Gun 5 | . 5 Ballistic Gun 5 | . 5 Launcher 7 | . 7 Peak Build Rating 6 | 5 6 Average Rating 4 | 3 4 On Entrance 2 | . 5 Avg Prop Armor Cover (%) . | . . Naked Turns . | . . Heaviest Build 15 | 9 15 Greatest Support 20 | 20 20 Greatest Overweight (x) 1 | . 1 Average Overweight (x) . | . . Largest Inventory Capacity 8 | 5 8 Average Capacity 7 | 5 7 Most Carried 5 | 4 5 Average Carried 2 | 2 2 Final Capacity 5 | 5 5 Final Carried 4 | 3 4 Class Distribution -------------------- 100% | Mutant Dominant Class ---------------- Mutant | -10/Materials Resources | -11 -10 ----------- Run | Yrd Mat Matter Collected 218 | 205 13 Remotely . | . . Salvage Created 71 | . 71 Parts 4 | . 4 Haulers Intercepted . | . . Recyclers Shooed . | . . Parts Field Recycled . | . . Retrieved Matter . | . . Parts Self-Destructed . | . . Prevented . | . . Parts Restored . | . . Kills | -11 -10 ------- Run | Yrd Mat Combat Hostiles Destroyed 3 | . 3 AOE 3 | . 3 Classes Destroyed 3 | . 3 Mechanic 1 | . 1 Swarmer 1 | . 1 Grunt 2 | . 2 Best Kill Streak 3 | . 3 Combat Bots Only 2 | . 2 Max Kills in Single Turn 2 | . 2 Gunslinging . | . . Exploded 1 | . 1 Melee . | . . Uniques/NPCs Destroyed . | . . Combat | -11 -10 -------- Run | Yrd Mat Hostile Shots Fired 72 | . 72 Missed 22 | . 22 Hits 50 | . 50 Projectile 50 | . 50 Critical Strikes 4 | . 4 Damage Taken 771 | . 771 Core 255 | . 255 Absorbed by Shields . | . . Core Remaining (%) 100 | 100 . Volleys Fired 19 | . 19 Largest 2 | . 2 Hottest 70 | . 70 Shots Fired 31 | . 31 Gun 29 | . 29 Cannon . | . . Launcher 2 | . 2 Special . | . . Kinetic 17 | . 17 Thermal 12 | . 12 Explosive 2 | . 2 Electromagnetic . | . . Robot Hit Streak 6 | . 6 Robot Miss Streak 5 | . 5 Penetration Max . | . . Secondary Targets . | . . Shots Hit Robots 18 | . 18 Core Hits 8 | . 8 Critical Kills . | . . Critical Parts Destroyed . | . . Critical Strikes 1 | . 1 Burn 1 | . 1 Melee Attacks 3 | . 3 Impact 3 | . 3 Slashing . | . . Piercing . | . . Sneak Attacks . | . . Combat Hostiles . | . . Follow-up Attacks . | . . Damage Inflicted 601 | . 601 Guns 220 | . 220 Cannons . | . . Explosions 381 | . 381 Melee . | . . Ramming . | . . Kinetic 170 | . 170 Thermal 290 | . 290 Explosive 141 | . 141 Electromagnetic . | . . Impact . | . . Slashing . | . . Piercing . | . . Highest Corruption . | . . Average Corruption . | . . Corruption Purged . | . . Corruption Blocked . | . . Overload Shots . | . . Overflow Damage 71 | . 71 Projectiles . | . . Explosions 71 | . 71 Melee . | . . Knockbacks . | . . Impact . | . . Kinetic . | . . Secondary . | . . Self-Inflicted Damage 163 | . 163 Shots 2 | . 2 Rammed . | . . Targets Rammed . | . . Kicked . | . . Crushed . | . . Highest Temperature 138 | . 138 Average Temperature 48 | . 48 Received Heat Transfer 363 | . 363 Siege Activations . | . . Martial Activations . | . . Shielding Activations . | . . Robots Disrupted . | . . Combat Hostiles . | . . Robots Corrupted . | . . Combat Hostiles . | . . Parts Fried . | . . Impact Corruptions . | . . Robots Melted . | . . Combat Hostiles . | . . Parts Melted . | . . Heat Transferred 372 | . 372 Parts Sabotaged . | . . Parts Stolen . | . . Parts Stripped . | . . Power Chain Reactions . | . . Alert | -11 -10 ------- Run | Yrd Mat Maximum Alert Level . | . . Low Security (%) 100 | 100 100 Level 1 . | . . Level 2 . | . . Level 3 . | . . Level 4 . | . . Level 5 . | . . High Security . | . . Max Security . | . . Peak Influence 134 | . 134 Initial . | . . Average 47 | . 53 Influence Increases 228 | . 228 Destroy 0b10 Robot/C 60 | . 60 Destroy 0b10 Robot/NC 5 | . 5 Destroy Leader 10 | . 10 Successful Hack 11 | . 11 Disable Machine 45 | . 45 Destroy Structure 52 | . 52 Lose Combat Pursuer 45 | . 45 Influence Decreases 147 | . 147 Time Decay 127 | . 127 Lost Part 20 | . 20 Squads Dispatched . | . . Investigation . | . . Extermination . | . . Reinforcement . | . . Assault . | . . Garrison . | . . Intercept . | . . Searches Triggered . | . . Construction Impeded . | . . Haulers Reinforced . | . . Active Scanning Responses . | . . Cargo Convoy Interrupts . | . . Stealth | -11 -10 --------- Run | Yrd Mat Distress Signals 1 | . 1 Communications Jammed . | . . Distress Signals . | . . Times Spotted 13 | . 13 Peak Tracking Total 5 | . 5 Tactical Retreats 2 | . 2 Traps | -11 -10 ------- Run | Yrd Mat Traps Triggered . | . . Indirectly . | . . Trap Hack Attempts . | . . Triggered . | . . Disarmed . | . . Reprogrammed . | . . Reused . | . . Traps Extracted . | . . Installed . | . . Triggered . | . . Machines | -11 -10 ---------- Run | Yrd Mat Machines Disabled 3 | . 3 Max in Single Turn 3 | . 3 Machines Repaired . | . . Machines Dismantled . | . . Machines Sabotaged . | . . Overloaded Fab Kills . | . . Hacking | -11 -10 --------- Run | Yrd Mat Machines Accessed 2 | . 2 Terminals 2 | . 2 Fabricators . | . . Repair Stations . | . . Recycling Units . | . . Scanalyzers . | . . Garrison Access . | . . Total Hacks 8 | . 8 Successful 6 | . 6 Failed 2 | . 2 Catastrophic . | . . Database Lockouts . | . . Manual 4 | . 4 Terminals 8 | . 8 Fabricators . | . . Repair Stations . | . . Recycling Units . | . . Scanalyzers . | . . Garrison Access . | . . Terminal Hacks 3 | . 3 Prototype ID Bank 1 | . 1 Branch Access Points 1 | . 1 Zone Layout 1 | . 1 Fabricator Hacks . | . . Repair Station Hacks . | . . Recycling Unit Hacks . | . . Scanalyzer . | . . Garrison Access Hacks . | . . Unauthorized Hacks 3 | . 3 Terminals 3 | . 3 Assimilate 1 | . 1 Botnet 2 | . 2 Fabricators . | . . Repair Stations . | . . Recycling Units . | . . Scanalyzers . | . . Garrison Access . | . . Data Cores Recovered . | . . Used . | . . Hacking Detections 2 | . 2 Full Trace Events . | . . Feedback Events . | . . Feedback Blocked . | . . Robot Schematics Acquired . | . . Robots Built . | . . Authchips . | . . Time . | . . Total Robot Build Rating . | . . Part Schematics Acquired . | . . Parts Built . | . . Authchips . | . . Time . | . . Total Part Build Rating . | . . Part Studies Acquired . | . . Parts Repaired . | . . Time . | . . Parts Recycled . | . . Recycled Matter . | . . Retrieved Matter . | . . Retrieved Components . | . . Parts Scanalyzed . | . . Part Schematics Acquired . | . . Parts Damaged . | . . Bothacking | -11 -10 ------------ Run | Yrd Mat Used RIF Installer . | . . Robots Hacked . | . . Non-combat . | . . Combat . | . . Robot Hacks Applied . | . . Relay Couplers Released . | . . Fabnet Peak Effective % . | . . Robots Rewired . | . . Allies Hacked . | . . Hacks Repelled . | . . Allies | -11 -10 -------- Run | Yrd Mat Total Allies 1 | . 1 Largest Group 1 | . 1 Highest-Rated Group 10 | . 10 Highest-Rated Ally 10 | . 10 Total Orders . | . . Ally Attacks . | . . Total Damage . | . . Kills . | . . Allies Corrupted . | . . Allies Melted . | . . Intel | -11 -10 ------- Run | Yrd Mat Active Infowar (turns) . | . . Robot Analysis Total . | . . Derelict Logs Recovered . | . . Drone Launches . | . . Drone Recoveries . | . . Exploration | -11 -10 ------------- Run | Yrd Mat Turns Passed 480 | 59 421 Spaces Moved 273 | 48 225 Core 21 | 19 2 Treads . | . . Legs 244 | 29 215 Wheels 8 | . 8 Hover . | . . Flight . | . . Fastest Speed 50 | 50 80 Average Speed 141 | 92 152 Slowest Speed 190 | 120 190 Overloaded Moves . | . . Propulsion Burnouts . | . . Robots Hopped . | . . Potential Cave-ins . | . . Cave-ins Triggered . | . . Exploration Rate (%) 19 | 4 35 Regions Visited 1 Branch Regions . Pre-discovered Areas . | . . Known Exits Taken . | . . Unknown Exits Taken 1 | 1 . Scrap Searched . | . . Spaces Dug . | . . Terrain Destroyed 62 | . 62 Melee . | . . Projectile . | . . AOE 62 | . 62 Terrain Rammed . | . . Walls Destroyed . | . . Machines Disabled . | . . Actions | -11 -10 --------- Run | Yrd Mat Total 331 | 63 268 Wait 9 | . 9 Move 272 | 47 225 Hop . | . . Pick Up 12 | 9 3 Fast Attach 1 | . 1 Attach 9 | 6 3 Detach 1 | . 1 Swap 2 | . 2 Drop 3 | 1 2 Fire 19 | . 19 Melee 3 | . 3 Ram . | . . Kick . | . . Crush . | . . Escape Stasis . | . . Rewire . | . . Trap . | . . Miscellaneous . | . . Route ------- -11/Scrapyard -10/Materials (discovered 2 exits: *Min x2) History --------- Turn | Location | Event 11 | -11/Scrapyard | Discovered new exit (range 16) 60 | -11/Scrapyard | Entered Materials 89 | -10/Materials | Identified exit to Mines 225 | -10/Materials | Core integrity fell below 50% 252 | -10/Materials | Core integrity fell below 20% 282 | -10/Materials | Lost 3 parts (1n2w) 315 | -10/Materials | Build established: Mutant 481 | -10/Materials | Destroyed by S-10 Pest with Light Assault Rifle Last Messages --------------- 00251_ G-34 Mercenary destroyed. 00258_ Acquired 13 matter. 00271_ K-01 Serf collects debris. 00331_ T-07 Excavator is excavating. 00334_ U-05 Engineer lays Concrete. 00340_ T-07 Excavator is excavating. 00340_ K-01 Serf collects debris. 00344_ T-07 Excavator is excavating. 00360_ K-01 Serf collects debris. 00360_ T-07 Excavator is excavating. 00372_ Acquired Huge Storage Unit. 00398_ S-10 Pest destroyed. 00402_ The unstable cave ceiling collapses. 00402_ K-01 Serf collects debris. 00430_ Acquired ECM Suite. 00450_ W-16 Scout sends out distress signal. 00462_ Dropped Aluminum Leg. 00463_ Dropped Sml. Storage Unit. 00465_ Acquired Maul. 00479_ Ion Engine destroyed. Map ----- +----------------------------------------------------+ | | | | | | | | | | | | | | | ???????????????????????????????? | | ???????????????????????????????? | | ???????????????????????????????? | | ???????????????????????????????? | | ???????????????????????????????? | | ???????????????????????????????? | | ???????????????????????????????? | | ?????????#?????????????????????? | | ????????? ?????????????????????? | | ????????# ?????????????????????? | | ????????# #????????????????????? | | ????????# #????????????????????? | | ######### #????????????????????? | | # !! # #????????????????????? | | # !! ! # #?#####??????????????? | | # ! # #?# [[#??????????????? | | # # ### [[#??????????????? | | # s# ==#??????????????? | | # """@s ==#??????????????? | | # """ # ! //#??????????????? | | # """ # = /#??????????????? | | # # #####??????????????? | | ? # #??????????????????? | | # # #??????????????????? | | ######### #??????????????????? | | ????????# #??????????????????? | | ???????## ############???????? | | ???????# # #???????? | | ???????# # #???????? | | ???????# > + #????#??? | | ???????# # #??? #??? | | ???????# ###########?? #??? | | ???????### #### #??????? #??? | | ?????????# #??# #?????? #??? | | #######??# #??# #?????? #??? | | # ! ?# #??# ####### #??? | | # "" ?# #??# # #### | | # "T # #### # | | # "" # ## # | | # + ###/## | | # """"" # #??????? | | ??""""" # ##??????? | | ???"""" ?# #???????? | +----------------------------------------------------+ Best States ------------- Heat Dissipation 25 Energy Generation 10 Energy Capacity 250 Matter Stores 245 Matter Capacity 300 Sight Range 16 Terrain Scan Density 10 Evasion (%) 55 Item Schematics ----------------- None Robot Schematics ------------------ None Fabricated ------------ Nothing Repaired ---------- Nothing Studied --------- None Alien Tech Used ----------------- None Achievements -------------- None Challenges ------------ None Game ------ Seed LightningShieldPlatform Manual? 0 Play Time 00:09:04 Cumulative 187.4 hours Start 2026.07.28 @ 10:04:03 End 2026.07.28 @ 10:13:30 Sessions 1 Manual Loads 0 Difficulty Rogue Special Mode None Game No. 28 Rogue 19 Adventurer 9 Explorer 0 Win Type - Total 11 Types 7/1/2/0/0/0/0/0/0/1 Lore% 44 Gallery% 51 Achievement% 44 Wizard Run 0 Options --------- Layout 1 ASCII 0 Keyboard 0 Movement Mouse Keybinds 0 Fullscreen 2 Font 32/SmallcapsGlow Map View 77x35 Zoom Use 0% Tactical HUD 1 Map Filters NONE Filters NONE Steam 1 RUN: 4054ce4f-b3bd-4b60-8ffd-65c8392e8afb